Cogmind - Beta 15 @@@ ROGUE MODE // 2025.09.01 @ 05:17:50 Player: shapeshifter Result: Destroyed by 41-8U1(R) with Subdweller Machine Gun Performance ------------- Evolutions (0) 0 Regions Visited (3) 600 Robots Destroyed (27) 135 Value Destroyed (415) 415 Prototype IDs (0) 0 Alien Tech Used (0) 0 Bonus (0) 0 TOTAL SCORE: 1150 Bonus ------- None Cogmind --------- Core Integrity 0/250 Matter 264/300 Energy 272/275 System Corruption 0% Temperature Cool (0) Movement Rolling (120) Ox1 Location -10/Subcaves Parts ------- > --- POWER (1) -------- Deuterium Engine > --- PROPULSION (2) --- Subdweller Monowheel Subdweller Monowheel > --- UTILITY (2) ------ Scrap Shield > --- WEAPON (2) ------- Battle Rifle Heavy Battle Rifle > --- INVENTORY (5) ---- High-capacity Storage Unit Riot Gun Riot Gun Barrage Gun Peak State ------------ > --- POWER ------------ Deuterium Engine > --- PROPULSION ------- Subdweller Monowheel Subdweller Monowheel > --- UTILITY ---------- Scrap Shield > --- WEAPON ----------- Battle Rifle Heavy Battle Rifle > --- INVENTORY -------- High-capacity Storage Unit Riot Gun Riot Gun Barrage Gun [Rating: 18] Favorites ----------- Power Nuclear Core Engine Light Ion Engine Power Core Nuclear Core Propulsion Light Treads Treads Light Treads Wheel Subdweller Monowheel Utility Seismic Detector Device Seismic Detector Storage High-capacity Storage Unit Protection Scrap Shield Weapon Heavy Battle Rifle Energy Gun Field Laser Ballistic Gun Heavy Battle Rifle Build | -11 -10 -10 -10 ------- Run | Yrd Mat Min Sub Slots Evolved . | . . . . Power . | . . . . Propulsion . | . . . . Utility . | . . . . Weapon . | . . . . Parts Attached 20 | 7 1 4 8 Power 3 | 1 . 1 1 Engine 2 | 1 . . 1 Core 1 | . . 1 . Reactor . | . . . . Propulsion 6 | 2 . . 4 Treads 2 | 2 . . . Leg . | . . . . Wheel 4 | . . . 4 Hover . | . . . . Flight . | . . . . Utility 5 | 2 1 1 1 Device 1 | 1 . . . Storage 3 | 1 1 1 . Processor . | . . . . Hackware . | . . . . Protection 1 | . . . 1 Artifact . | . . . . Weapon 6 | 2 . 2 2 Energy Gun 2 | 1 . 1 . Energy Cannon . | . . . . Ballistic Gun 4 | 1 . 1 2 Ballistic Cannon . | . . . . Launcher . | . . . . Special Weapon . | . . . . Impact Weapon . | . . . . Slashing Weapon . | . . . . Piercing Weapon . | . . . . Special Melee Weapon . | . . . . Unidentified Prototypes . | . . . . Parts Lost 5 | . . . 5 Power 1 | . . . 1 Propulsion 4 | . . . 4 Utility . | . . . . Weapon . | . . . . Highest Loss Streak 4 | . . . 4 To Critical Strikes . | . . . . Average Backups 11 | 3 4 10 12 Power . | . 1 . . Propulsion 1 | 1 2 2 . Utility 4 | . . 4 4 Weapon 4 | 1 1 3 6 Tool/Special . | . . . . Unused Backups 13 | . . 1 12 Power 1 | . . 1 . Propulsion . | . . . . Utility 4 | . . . 4 Weapon 8 | . . . 8 Tool/Special . | . . . . Average Slot Usage (%) 84 | . 100 100 72 Engine 3 | . 14 1 3 Core 5 | . . 12 2 Treads 15 | . 28 28 5 Wheel 3 | . . . 6 Device 12 | . 14 14 10 Storage 12 | . 14 14 10 Protection 1 | . . . 3 Energy Gun 7 | . 14 14 3 Ballistic Gun 20 | . 14 14 24 Peak Build Rating 18 | 7 7 13 18 Average Rating 11 | 4 7 11 12 On Entrance 6 | . 7 7 13 Naked Turns . | . . . . Heaviest Build 52 | 13 28 52 52 Greatest Support 40 | 40 40 40 40 Greatest Overweight (x) 15 | . . 1 15 Average Overweight (x) 2 | . . . 4 Largest Inventory Capacity 20 | 8 15 20 20 Average Capacity 16 | 7 14 18 16 Most Carried 18 | 7 6 13 18 Average Carried 11 | 3 4 10 13 Final Capacity 20 | 8 15 20 5 Final Carried 13 | 4 5 13 4 Class Distribution -------------------- 92% | Mutant 7% | Subdweller-Mutant Dominant Class ---------------- Mutant | -10/Materials Mutant | -10/Mines Mutant | -10/Subcaves Resources | -11 -10 -10 -10 ----------- Run | Yrd Mat Min Sub Matter Collected 534 | 297 43 99 95 Remotely . | . . . . Salvage Created 675 | 121 145 273 136 Parts 56 | 7 17 26 6 Haulers Intercepted . | . . . . Recyclers Shooed . | . . . . Parts Field Recycled . | . . . . Retrieved Matter . | . . . . Parts Self-Destructed 4 | . . . 4 Prevented . | . . . . Kills | -11 -10 -10 -10 ------- Run | Yrd Mat Min Sub Combat Hostiles Destroyed 19 | . 3 13 3 Guns 19 | . 3 13 3 Classes Destroyed 8 | 2 4 1 1 Worker 1 | . 1 . . Builder 1 | . 1 . . Tunneler 2 | 2 . . . Recycler 1 | 1 . . . Watcher 3 | . 3 . . Swarmer 14 | . 3 11 . Grunt 2 | . . 2 . Subdweller 3 | . . . 3 Best Kill Streak 5 | 2 5 4 1 Combat Bots Only 4 | . 3 4 1 Max Kills in Single Turn 2 | 1 2 2 1 Gunslinging . | . . . . Exploded . | . . . . Melee . | . . . . Uniques/NPCs Destroyed . | . . . . Combat | -11 -10 -10 -10 -------- Run | Yrd Mat Min Sub Hostile Shots Fired 111 | . 15 72 24 Missed 35 | . 7 22 6 Hits 76 | . 8 50 18 Projectile 76 | . 8 50 18 Critical Strikes 1 | . . 1 . Damage Taken 1037 | . 61 459 517 Core 266 | . 15 44 207 Absorbed by Shields . | . . . . Core Remaining (%) 100 | 100 . . . Volleys Fired 72 | 9 12 34 17 Largest 2 | 2 2 2 2 Hottest 83 | 60 60 83 83 Shots Fired 144 | 18 24 68 34 Gun 144 | 18 24 68 34 Cannon . | . . . . Launcher . | . . . . Special . | . . . . Kinetic 80 | 9 12 34 25 Thermal 32 | . . 23 9 Explosive . | . . . . Electromagnetic 32 | 9 12 11 . Robot Hit Streak 10 | 3 5 10 10 Robot Miss Streak 6 | 2 2 6 2 Penetration Max . | . . . . Secondary Targets 4 | . 1 3 . Max Gunslinging Chain 1 | . 1 1 . Shots Hit Robots 86 | 9 12 37 28 Core Hits 36 | 4 8 18 6 Critical Kills . | . . . . Critical Parts Destroyed . | . . . . Critical Strikes 1 | 1 . . . Corrupt 1 | 1 . . . Melee Attacks . | . . . . Impact . | . . . . Slashing . | . . . . Piercing . | . . . . Sneak Attacks . | . . . . Combat Hostiles . | . . . . Follow-up Attacks . | . . . . Damage Inflicted 1265 | 123 308 443 391 Guns 1172 | 123 215 443 391 Cannons . | . . . . Explosions 93 | . 93 . . Melee . | . . . . Ramming . | . . . . Kinetic 570 | 54 66 177 273 Thermal 413 | . 93 202 118 Explosive . | . . . . Electromagnetic 282 | 69 149 64 . Impact . | . . . . Slashing . | . . . . Piercing . | . . . . Highest Corruption . | . . . . Average Corruption . | . . . . Corruption Purged . | . . . . Corruption Blocked . | . . . . Overload Shots . | . . . . Overflow Damage 4 | . 4 . . Projectiles . | . . . . Explosions 4 | . 4 . . Melee . | . . . . Knockbacks . | . . . . Impact . | . . . . Kinetic . | . . . . Secondary . | . . . . Self-Inflicted Damage . | . . . . Shots . | . . . . Rammed . | . . . . Targets Rammed . | . . . . Kicked . | . . . . Crushed . | . . . . Highest Temperature 348 | . . 348 5 Average Temperature 119 | . . 126 3 Received Heat Transfer 153 | . . 81 72 Effects 2 | . . 2 . Shutdowns 1 | . . 1 . Energy Bleed 1 | . . 1 . Siege Activations . | . . . . Martial Activations . | . . . . Shielding Activations . | . . . . Robots Disrupted . | . . . . Combat Hostiles . | . . . . Robots Corrupted . | . . . . Combat Hostiles . | . . . . Parts Fried 1 | . 1 . . Impact Corruptions . | . . . . Robots Melted . | . . . . Combat Hostiles . | . . . . Parts Melted 1 | . . . 1 Heat Transferred 903 | . 200 444 259 Parts Sabotaged . | . . . . Parts Stolen . | . . . . Parts Stripped . | . . . . Power Chain Reactions 2 | . 2 . . Alert | -11 -10 -10 -10 ------- Run | Yrd Mat Min Sub Maximum Alert Level . | . . . . Low Security (%) 100 | 100 100 100 . Level 1 . | . . . . Level 2 . | . . . . Level 3 . | . . . . Level 4 . | . . . . Level 5 . | . . . . High Security . | . . . . Max Security . | . . . . Peak Influence 107 | 10 72 107 . Initial . | . . . . Average 25 | . 17 31 . Influence Increases 432 | 15 102 315 . Destroy 0b10 Robot/C 320 | . 60 260 . Destroy 0b10 Robot/NC 40 | 15 25 . . Destroy Leader 56 | . 16 40 . Destroy Structure 1 | . 1 . . Lose Combat Pursuer 15 | . . 15 . Influence Decreases 432 | 15 102 280 35 Entered New Map 19 | . . . 19 Time Decay 413 | 15 102 280 16 Squads Dispatched 2 | . 1 1 . Investigation 1 | . . 1 . Extermination . | . . . . Reinforcement 1 | . 1 . . Assault . | . . . . Garrison . | . . . . Intercept . | . . . . Searches Triggered . | . . . . Construction Impeded . | . . . . Haulers Reinforced . | . . . . Active Scanning Responses . | . . . . Cargo Convoy Interrupts . | . . . . Stealth | -11 -10 -10 -10 --------- Run | Yrd Mat Min Sub Distress Signals 1 | . 1 . . Communications Jammed . | . . . . Distress Signals . | . . . . Times Spotted 27 | . 9 14 4 Peak Tracking Total 5 | . 5 4 2 Tactical Retreats 1 | . . 1 . Traps | -11 -10 -10 -10 ------- Run | Yrd Mat Min Sub Traps Triggered 2 | . . . 2 Indirectly . | . . . . Trap Hack Attempts . | . . . . Triggered . | . . . . Disarmed . | . . . . Reprogrammed . | . . . . Reused . | . . . . Traps Extracted . | . . . . Installed . | . . . . Triggered . | . . . . Machines | -11 -10 -10 -10 ---------- Run | Yrd Mat Min Sub Machines Disabled . | . . . . Max in Single Turn . | . . . . Machines Repaired . | . . . . Machines Dismantled . | . . . . Machines Sabotaged . | . . . . Overloaded Fab Kills . | . . . . Hacking | -11 -10 -10 -10 --------- Run | Yrd Mat Min Sub Machines Accessed 4 | . 2 2 . Terminals 3 | . 2 1 . Fabricators . | . . . . Repair Stations . | . . . . Recycling Units . | . . . . Scanalyzers . | . . . . Garrison Access . | . . . . Total Hacks 8 | . 5 3 . Successful 3 | . 1 2 . Failed 5 | . 4 1 . Catastrophic 2 | . 2 . . Database Lockouts . | . . . . Manual 4 | . 2 2 . Terminals 7 | . 5 2 . Fabricators . | . . . . Repair Stations . | . . . . Recycling Units . | . . . . Scanalyzers . | . . . . Garrison Access . | . . . . Terminal Hacks 3 | . 1 2 . Open Door 1 | . . 1 . Recall Reinforcements 1 | . 1 . . Zone Layout 1 | . . 1 . Fabricator Hacks . | . . . . Repair Station Hacks . | . . . . Recycling Unit Hacks . | . . . . Scanalyzer . | . . . . Garrison Access Hacks . | . . . . Unauthorized Hacks . | . . . . Terminals . | . . . . Fabricators . | . . . . Repair Stations . | . . . . Recycling Units . | . . . . Scanalyzers . | . . . . Garrison Access . | . . . . Data Cores Recovered . | . . . . Used . | . . . . Hacking Detections 3 | . 2 1 . Full Trace Events 1 | . 1 . . Feedback Events . | . . . . Feedback Blocked . | . . . . Robot Schematics Acquired . | . . . . Robots Built . | . . . . Authchips . | . . . . Time . | . . . . Total Robot Build Rating . | . . . . Part Schematics Acquired . | . . . . Parts Built . | . . . . Authchips . | . . . . Time . | . . . . Total Part Build Rating . | . . . . Parts Repaired . | . . . . Time . | . . . . Parts Recycled . | . . . . Recycled Matter . | . . . . Retrieved Matter . | . . . . Retrieved Components . | . . . . Parts Scanalyzed . | . . . . Part Schematics Acquired . | . . . . Parts Damaged . | . . . . Bothacking | -11 -10 -10 -10 ------------ Run | Yrd Mat Min Sub Used RIF Installer . | . . . . Robots Hacked . | . . . . Non-combat . | . . . . Combat . | . . . . Robot Hacks Applied . | . . . . Relay Couplers Released . | . . . . Fabnet Peak Effective % . | . . . . Robots Rewired . | . . . . Allies Hacked . | . . . . Hacks Repelled . | . . . . Allies | -11 -10 -10 -10 -------- Run | Yrd Mat Min Sub Total Allies . | . . . . Largest Group . | . . . . Highest-Rated Group . | . . . . Highest-Rated Ally . | . . . . Total Orders . | . . . . Ally Attacks . | . . . . Total Damage . | . . . . Kills . | . . . . Allies Corrupted . | . . . . Allies Melted . | . . . . Intel | -11 -10 -10 -10 ------- Run | Yrd Mat Min Sub Active Infowar (turns) 3156 | 25 388 1176 1567 Seismic 3156 | 25 388 1176 1567 Robot Analysis Total . | . . . . Derelict Logs Recovered 1 | . . . 1 Drone Launches . | . . . . Drone Recoveries . | . . . . Exploration | -11 -10 -10 -10 ------------- Run | Yrd Mat Min Sub Turns Passed 3749 | 151 388 1176 2034 Spaces Moved 1412 | 71 170 466 705 Core 141 | 6 . . 135 Treads 875 | 65 170 466 174 Legs . | . . . . Wheels 396 | . . . 396 Hover . | . . . . Flight . | . . . . Fastest Speed 50 | 50 160 160 105 Average Speed 233 | 150 160 205 277 Slowest Speed 800 | 160 160 240 800 Overloaded Moves . | . . . . Propulsion Burnouts . | . . . . Robots Hopped . | . . . . Potential Cave-ins . | . . . . Cave-ins Triggered . | . . . . Exploration Rate (%) 43 | 5 35 75 57 Regions Visited 3 Branch Regions 2 Pre-discovered Areas 2 | . . 1 1 Known Exits Taken . | . . . . Unknown Exits Taken 3 | 1 1 1 . Scrap Searched 12 | . . 3 9 Spaces Dug . | . . . . Terrain Destroyed . | . . . . Melee . | . . . . Projectile . | . . . . AOE . | . . . . Terrain Rammed . | . . . . Walls Destroyed . | . . . . Machines Disabled . | . . . . Actions | -11 -10 -10 -10 --------- Run | Yrd Mat Min Sub Total 1734 | 97 262 622 753 Wait 190 | . 77 105 8 Move 1409 | 70 169 465 705 Hop . | . . . . Pick Up 35 | 11 2 11 11 Fast Attach . | . . . . Attach 14 | 7 . 1 6 Detach . | . . . . Swap 6 | . 1 3 2 Drop 8 | . 1 3 4 Fire 72 | 9 12 34 17 Melee . | . . . . Ram . | . . . . Kick . | . . . . Crush . | . . . . Escape Stasis . | . . . . Rewire . | . . . . Trap . | . . . . Miscellaneous . | . . . . Route ------- -11/Scrapyard -10/Materials -10/Mines (discovered 4 exits: [*Mat x2] / [*Exi] / [*Sub]) -10/Subcaves (discovered 2 exits: [*Mat x2]) History --------- Turn | Location | Event 7 | -11/Scrapyard | Discovered new exit (range 16) 152 | -11/Scrapyard | Entered Materials 306 | -10/Materials | Build established: Mutant 442 | -10/Materials | Discovered new exit (range 13) 540 | -10/Materials | Entered Mines 636 | -10/Mines | Met a Derelict shopkeep closing up shop 760 | -10/Mines | Discovered new exit (range 7) 1263 | -10/Mines | Deemed a non-threat by the Exiles lab entrance 1263 | -10/Mines | Discovered new exit (range 5) 1304 | -10/Mines | A weapon hastily lodged in a ceiling crevice suddenly fell to the ground 1416 | -10/Mines | Discovered new exit (range 8) 1489 | -10/Mines | Learned location of Storage (-7) 1690 | -10/Mines | Discovered new exit (range 7) 1716 | -10/Mines | Entered Subcaves 1736 | -10/Subcaves | Discovered new exit (range 15) 1799 | -10/Subcaves | Learned location of Zion (-6) 1799 | -10/Subcaves | Met a Zionite searching for "candidates" 1891 | -10/Subcaves | Discovered new exit (range 15) 2186 | -10/Subcaves | Lost 4 parts (1p3n) 2302 | -10/Subcaves | Core integrity fell below 50% 2566 | -10/Subcaves | A swath of the cavern ceiling suddenly collapsed 3145 | -10/Subcaves | Learned Materials garrison access intel 3742 | -10/Subcaves | Core integrity fell below 20% 3750 | -10/Subcaves | Destroyed by 41-8U1(R) with Subdweller Machine Gun Last Messages --------------- 03225_ Searching scrap... 03225_ Found Sub. Beam Cannon. 03225_ Found Sub. Machine Gun. 03225_ Found 31 Matter. 03281_ Acquired Sub. Monowheel. 03283_ Dropped Seismic Detector. 03283_ Dropped Hcp. Storage Unit. 03286_ Acquired Hcp. Storage Unit. 03289_ Dropped Med. Laser. 03290_ Dropped EM Pulse Gun. 03297_ Acquired 20 matter. 03300_ Acquired Riot Gun. 03303_ Acquired Barrage Gun. 03308_ Acquired Riot Gun. 03361_ Sub. Monowheel shoots sparks and powers down. 03451_ Acquired Sub. Monowheel. 03453_ Acquired 20 matter. 03461_ Subatomizers dissect the Sub. Laser. 03744_ RG-PQW(R) destroyed. Map ----- +----------------------------------------------------+ | ?????????????????????????????????????????? | | ?????????????????????????????????????????? | | ?????????????????????????????????????????? | | ?????????????????????????????????????????? | | ??????????####???????????????????????????? | | ?????????## #???????????????????????????? | | ##??????## #???????????????????????????? | | ##????## #???????????????????????????? | | ##???# #??#####????????????????????? | | ##### ##?# ##???????????????????? | | ### #??####?????????????? | | ## #### #?????????????? | | # #?????????????? | | #??????????????? | | ##?????????????? | | ## #### #?????????????? | | ###### ###?## #?????????????? | | # ##????# #??## ##?????????????? | | # #?????# #??# #??????????????? | | # ###?????# #??## ##?????????????? | | ## #??????? ???## #?????????????? | | ?# ?????? #??## #?????????????? | | ? #????? ##?## #?????????????? | | ? #????# ##?## #?????????????? | | ? ##????#### ?## R #?????????????? | | ? #????????? #?# &%@##?????????????? | | ??????????????# ??# ###??????????????? | | ??????????????? ?# ?????????????????? | | ???????????????? ?????????????????? | | ????????????? ?????????????????? | | ???????????? ?????????????????? | | ??????????? ## ?????????????????? | | ???????????####??# ??????????????????? | | ?????????????????# ??????????????????? | | ?????????????????## ?????????????????????? | | ??????????????????# ?????????????????????? | | ??????????????????#??????????????????????? | | ?????????????????????????????????????????? | | ?????????????????????????????????????????? | | ?????????????????????????????????????????? | | ?????????????????????????????????????????? | | ?????????????????????????????????????????? | | ?????????????????????????????????????????? | | ?????????????????????????????????????????? | | ?????????????????????????????????????????? | | ?????????????????????????????????????????? | | ?????????????????????????????????????????? | | ?????????????????????????????????????????? | | ?????????????????????????????????????????? | | ?????????????????????????????????????????? | +----------------------------------------------------+ Best States ------------- Heat Dissipation 25 Energy Generation 14 Energy Capacity 275 Matter Stores 300 Matter Capacity 300 Sight Range 16 Terrain Scan Density 10 Armor Coverage 800 Evasion (%) 40 Recoil Reduction 2 Item Schematics ----------------- None Robot Schematics ------------------ None Fabricated ------------ Nothing Repaired ---------- Nothing Alien Tech Used ----------------- None Achievements -------------- None Challenges ------------ None Game ------ Seed NeutronGuidedActivator Manual? 0 Play Time 00:13:19 Cumulative 242.5 hours Start 2025.09.01 @ 05:07:42 End 2025.09.01 @ 05:17:50 Sessions 1 Manual Loads 0 Difficulty Rogue Special Mode None Game No. 358 Rogue 358 Adventurer 0 Explorer 0 Win Type - Total 5 Types 4/0/1/0/0/0/0/0/0/0 Lore% 82 Gallery% 77 Achievement% 59 Wizard Run 0 Options --------- Layout 1 ASCII 0 Keyboard 0 Movement Mouse Keybinds 0 Fullscreen 1 Font 24/Smallcaps Map View 50x40 Zoom Use 0% Tactical HUD 1 Map Filters NONE Filters NONE Steam 1 RUN: 1b6b57cd-7f1f-4a3a-bcde-128c282d2a3f